Cogmind - Beta 17.1 @@@ ROGUE MODE // 2026.09.06 @ 22:17:53 Player: arkn Result: Destroyed by D-53 Grenadier with Mini Grenade Launcher Performance ------------- Evolutions (0) 0 Regions Visited (4) 800 Robots Destroyed (26) 130 Value Destroyed (483) 483 Prototype IDs (24) 480 Alien Tech Used (0) 0 Bonus (6307) 6307 TOTAL SCORE: 8200 Bonus ------- Follower Combat Kills 107 Prayed to X0-1V1 5000 Major X0-1V1 Interference 900 Aligned with FarCom 300 Cogmind --------- Core Integrity 0/250 Matter 283/300 Energy 100/100 System Corruption 0% Temperature Cool (0) Movement Core (350) Ox6 Location -9/Mines Parts ------- > --- POWER (1) -------- (None) > --- PROPULSION (2) --- (None) > --- UTILITY (2) ------ Large Storage Unit X0-1V1's Piety Tracker > --- WEAPON (2) ------- (None) > --- INVENTORY (15) --- Improved Heat Sink Lightpack 2.0 Terrain Scanner Seismic Detector Hardened Light Armor Plating Hardened Light Armor Plating Hardened Light Armor Plating Hardened Light Armor Plating Heavy Assault Rifle Heavy Assault Rifle Heavy Assault Rifle Grenade Launcher Mining Laser Peak State ------------ > --- POWER ------------ Light Nuclear Core > --- PROPULSION ------- Light Treads Light Treads > --- UTILITY ---------- Large Storage Unit X0-1V1's Piety Tracker > --- WEAPON ----------- Heavy Assault Rifle Light Cannon > --- INVENTORY -------- Improved Heat Sink High-capacity Matter Pod Terrain Scanner Seismic Detector Hardened Light Armor Plating Hardened Light Armor Plating Hardened Light Armor Plating Hardened Light Armor Plating Heavy Assault Rifle Heavy Assault Rifle Heavy Assault Rifle Grenade Launcher Mining Laser [Rating: 24] Favorites ----------- Power Light Ion Engine Engine Light Ion Engine Power Core Light Nuclear Core Propulsion Light Treads Treads Light Treads Utility Large Storage Unit Device X0-1V1's Piety Tracker Storage Large Storage Unit Weapon Heavy Assault Rifle Energy Gun Medium Laser Energy Cannon Beam Cannon Ballistic Gun Heavy Assault Rifle Ballistic Cannon Light Cannon Launcher Grenade Launcher Build | -11 -10 -10 -10 -9 ------- Run | Yrd Mat Min Exi Min Slots Evolved . | . . . . . Power . | . . . . . Propulsion . | . . . . . Utility . | . . . . . Weapon . | . . . . . Parts Attached 21 | 5 15 . . 1 Power 3 | . 3 . . . Engine 2 | . 2 . . . Core 1 | . 1 . . . Reactor . | . . . . . Propulsion 3 | 2 1 . . . Treads 3 | 2 1 . . . Leg . | . . . . . Wheel . | . . . . . Hover . | . . . . . Flight . | . . . . . Utility 7 | 1 6 . . . Device 3 | 1 2 . . . Storage 4 | . 4 . . . Processor . | . . . . . Hackware . | . . . . . Protection . | . . . . . Artifact . | . . . . . Weapon 8 | 2 5 . . 1 Energy Gun 2 | 1 1 . . . Energy Cannon 1 | . 1 . . . Ballistic Gun 3 | 1 2 . . . Ballistic Cannon 1 | . 1 . . . Launcher 1 | . . . . 1 Special Weapon . | . . . . . Impact Weapon . | . . . . . Slashing Weapon . | . . . . . Piercing Weapon . | . . . . . Special Melee Weapon . | . . . . . Unidentified Prototypes 1 | . 1 . . . Parts Lost 8 | . 4 . . 4 Power 2 | . 1 . . 1 Propulsion 2 | . 1 . . 1 Utility 1 | . 1 . . . Weapon 3 | . 1 . . 2 Highest Loss Streak 4 | . 2 . . 4 To Critical Strikes . | . . . . . Average Backups 10 | 2 8 13 12 13 Power . | . . . . . Propulsion . | . . . . . Utility 6 | . 4 8 7 8 Weapon 3 | . 3 5 5 5 Tool/Special . | . . . . . Unused Backups 19 | 1 8 . . 10 Power 1 | . 1 . . . Propulsion 1 | . 1 . . . Utility 11 | . 4 . . 7 Weapon 6 | 1 2 . . 3 Tool/Special . | . . . . . Average Slot Usage (%) 89 | . 92 85 85 82 Engine 7 | . 3 14 14 13 Core 4 | . 8 . . . Treads 21 | . 26 14 14 14 Device 9 | . 5 14 14 14 Storage 17 | . 19 14 14 14 Energy Gun 2 | . 4 . . . Ballistic Gun 15 | . 16 14 14 13 Ballistic Cannon 8 | . 5 14 14 10 Peak Build Rating 24 | 5 24 21 24 24 Average Rating 15 | 2 10 21 22 23 On Entrance 14 | . 4 21 21 24 Avg Prop Armor Cover (%) 30 | 33 29 . . . Naked Turns . | . . . . . Heaviest Build 35 | 4 35 30 30 30 Greatest Support 40 | 3 40 20 20 20 Greatest Overweight (x) 1 | 1 1 1 1 1 Average Overweight (x) . | . . 1 1 1 Largest Inventory Capacity 15 | 5 15 15 15 15 Average Capacity 11 | 5 9 15 15 15 Most Carried 15 | 5 13 15 15 15 Average Carried 11 | 3 8 14 14 15 Final Capacity 15 | 5 15 15 15 15 Final Carried 15 | 5 13 15 15 15 Class Distribution -------------------- 100% | Mutant Dominant Class ---------------- Mutant | -10/Materials Mutant | -10/Mines Mutant | -10/Exiles Mutant | -9/Mines Resources | -11 -10 -10 -10 -9 ----------- Run | Yrd Mat Min Exi Min Matter Collected 885 | 262 623 . . . Remotely . | . . . . . Salvage Created 779 | 29 734 . . 16 Parts 51 | 3 46 . . 2 Haulers Intercepted 2 | . 2 . . . Recyclers Shooed 2 | 1 1 . . . Parts Field Recycled . | . . . . . Retrieved Matter . | . . . . . Parts Self-Destructed . | . . . . . Prevented . | . . . . . Parts Restored . | . . . . . Kills | -11 -10 -10 -10 -9 ------- Run | Yrd Mat Min Exi Min Combat Hostiles Destroyed 17 | . 15 . . 2 Guns 15 | . 15 . . . AOE 2 | . . . . 2 Classes Destroyed 9 | 1 8 . . . Worker 1 | . 1 . . . Builder 1 | . 1 . . . Tunneler 1 | 1 . . . . Hauler 2 | . 2 . . . Recycler 1 | . 1 . . . Operator 1 | . 1 . . . Watcher 2 | . 2 . . . Swarmer 8 | . 6 . . 2 Grunt 9 | . 9 . . . Best Kill Streak 3 | 1 3 . . 2 Combat Bots Only 3 | . 3 . . 2 Max Kills in Single Turn 2 | 1 2 . . 2 Gunslinging 1 | . 1 . . . Exploded 2 | . . . . 2 Melee . | . . . . . Uniques/NPCs Destroyed . | . . . . . Combat | -11 -10 -10 -10 -9 -------- Run | Yrd Mat Min Exi Min Hostile Shots Fired 100 | . 92 . . 8 Missed 22 | . 21 . . 1 Hits 78 | . 71 . . 7 Projectile 78 | . 71 . . 7 AOE 9 | . . . . 9 Critical Strikes 3 | . 3 . . . Damage Taken 1232 | . 851 . . 381 Core 275 | . 160 . . 115 Absorbed by Shields . | . . . . . Core Remaining (%) 100 | 100 . . . . Volleys Fired 67 | 4 61 1 . 1 Largest 2 | 2 2 2 . 1 Hottest 85 | 70 85 53 . 30 Shots Fired 132 | 8 121 2 . 1 Gun 120 | 8 111 1 . . Cannon 11 | . 10 1 . . Launcher 1 | . . . . 1 Special . | . . . . . Kinetic 92 | 4 86 2 . . Thermal 39 | 4 35 . . . Explosive 1 | . . . . 1 Electromagnetic . | . . . . . Robot Hit Streak 12 | 4 12 2 . . Robot Miss Streak 4 | 3 4 1 . . Penetration Max . | . . . . . Secondary Targets 1 | . 1 . . . Max Gunslinging Chain 1 | . 1 . . . Shots Hit Robots 89 | 4 84 1 . . Core Hits 41 | 1 36 . . 4 Critical Kills . | . . . . . Critical Parts Destroyed . | . . . . . Critical Strikes 1 | . 1 . . . Burn 1 | . 1 . . . Melee Attacks . | . . . . . Impact . | . . . . . Slashing . | . . . . . Piercing . | . . . . . Sneak Attacks . | . . . . . Combat Hostiles . | . . . . . Follow-up Attacks . | . . . . . Damage Inflicted 1365 | 50 1201 18 . 96 Guns 1120 | 50 1052 18 . . Cannons 128 | . 128 . . . Explosions 96 | . . . . 96 Melee . | . . . . . Ramming 21 | . 21 . . . Kinetic 890 | 13 859 18 . . Thermal 358 | 37 321 . . . Explosive 96 | . . . . 96 Electromagnetic . | . . . . . Impact . | . . . . . Slashing . | . . . . . Piercing . | . . . . . Highest Corruption . | . . . . . Average Corruption . | . . . . . Corruption Purged . | . . . . . Corruption Blocked . | . . . . . Overload Shots . | . . . . . Overflow Damage 8 | . 8 . . . Projectiles 8 | . 8 . . . Explosions . | . . . . . Melee . | . . . . . Knockbacks . | . . . . . Impact . | . . . . . Kinetic . | . . . . . Secondary . | . . . . . Self-Inflicted Damage 8 | . 8 . . . Shots . | . . . . . Rammed 2 | . 2 . . . Targets Rammed 2 | . 2 . . . Kicked . | . . . . . Crushed . | . . . . . Highest Temperature 170 | . 170 . . . Average Temperature 51 | . 51 . . . Received Heat Transfer 476 | . 456 . . 20 Siege Activations . | . . . . . Martial Activations . | . . . . . Shielding Activations . | . . . . . Robots Disrupted . | . . . . . Combat Hostiles . | . . . . . Robots Corrupted . | . . . . . Combat Hostiles . | . . . . . Parts Fried . | . . . . . Impact Corruptions . | . . . . . Robots Melted . | . . . . . Combat Hostiles . | . . . . . Parts Melted 2 | . 2 . . . Heat Transferred 1110 | 111 999 . . . Parts Sabotaged . | . . . . . Parts Stolen . | . . . . . Parts Stripped . | . . . . . Power Chain Reactions . | . . . . . Alert | -11 -10 -10 -10 -9 ------- Run | Yrd Mat Min Exi Min Maximum Alert Level . | . . . . . Low Security (%) 100 | 100 100 100 . 100 Level 1 . | . . . . . Level 2 . | . . . . . Level 3 . | . . . . . Level 4 . | . . . . . Level 5 . | . . . . . High Security . | . . . . . Max Security . | . . . . . Peak Influence 111 | 5 111 32 . 80 Initial 32 | . . 32 . . Average 31 | . 43 2 . 5 Influence Increases 661 | 5 566 . . 90 Destroy 0b10 Robot/C 440 | . 380 . . 60 Destroy 0b10 Robot/NC 45 | 5 40 . . . Destroy Leader 78 | . 68 . . 10 Allied During Kill 15 | . 4 . . 11 Successful Hack 18 | . 18 . . . Destroy Structure 20 | . 11 . . 9 Lose Combat Pursuer 45 | . 45 . . . Influence Decreases 661 | 5 482 84 . 90 Entered New Map 52 | . . 52 . . Time Decay 509 | 5 462 32 . 10 Lost Part 40 | . 20 . . 20 Lost Ally 60 | . . . . 60 Squads Dispatched 2 | . 2 . . . Investigation 1 | . 1 . . . Extermination . | . . . . . Reinforcement 1 | . 1 . . . Assault . | . . . . . Garrison . | . . . . . Intercept . | . . . . . Searches Triggered . | . . . . . Construction Impeded . | . . . . . Haulers Reinforced . | . . . . . Active Scanning Responses . | . . . . . Cargo Convoy Interrupts . | . . . . . Stealth | -11 -10 -10 -10 -9 --------- Run | Yrd Mat Min Exi Min Distress Signals 6 | . 6 . . . Communications Jammed . | . . . . . Distress Signals . | . . . . . Times Spotted 47 | . 36 . . 11 Peak Tracking Total 9 | . 9 . . 6 Tactical Retreats 2 | . 2 . . . Traps | -11 -10 -10 -10 -9 ------- Run | Yrd Mat Min Exi Min Traps Triggered 2 | . 2 . . . Indirectly . | . . . . . Trap Hack Attempts . | . . . . . Triggered . | . . . . . Disarmed . | . . . . . Reprogrammed . | . . . . . Reused . | . . . . . Traps Extracted . | . . . . . Installed . | . . . . . Triggered . | . . . . . Most Traps Carried 2 | . . 2 2 . Machines | -11 -10 -10 -10 -9 ---------- Run | Yrd Mat Min Exi Min Machines Disabled . | . . . . . Max in Single Turn . | . . . . . Machines Repaired . | . . . . . Machines Dismantled . | . . . . . Machines Sabotaged . | . . . . . Overloaded Fab Kills . | . . . . . Hacking | -11 -10 -10 -10 -9 --------- Run | Yrd Mat Min Exi Min Machines Accessed 7 | . 6 . 1 . Terminals 6 | . 6 . . . Fabricators . | . . . . . Repair Stations . | . . . . . Recycling Units . | . . . . . Scanalyzers . | . . . . . Garrison Access . | . . . . . Total Hacks 22 | . 21 . 1 . Successful 11 | . 10 . 1 . Failed 11 | . 11 . . . Catastrophic . | . . . . . Database Lockouts . | . . . . . Manual 23 | . 22 . 1 . Terminals 21 | . 21 . . . Fabricators . | . . . . . Repair Stations . | . . . . . Recycling Units . | . . . . . Scanalyzers . | . . . . . Garrison Access . | . . . . . Terminal Hacks 3 | . 2 . 1 . Part Schematic 1 | . 1 . . . Emergency Access Points 1 | . 1 . . . Proto ID Catalog 1 | . . . 1 . Fabricator Hacks . | . . . . . Repair Station Hacks . | . . . . . Recycling Unit Hacks . | . . . . . Scanalyzer . | . . . . . Garrison Access Hacks . | . . . . . Unauthorized Hacks 8 | . 8 . . . Terminals 8 | . 8 . . . Track 4 | . 4 . . . Botnet 3 | . 3 . . . Operators 1 | . 1 . . . Fabricators . | . . . . . Repair Stations . | . . . . . Recycling Units . | . . . . . Scanalyzers . | . . . . . Garrison Access . | . . . . . Data Cores Recovered . | . . . . . Used . | . . . . . Hacking Detections 6 | . 6 . . . Full Trace Events . | . . . . . Feedback Events . | . . . . . Feedback Blocked . | . . . . . Robot Schematics Acquired . | . . . . . Robots Built . | . . . . . Authchips . | . . . . . Time . | . . . . . Total Robot Build Rating . | . . . . . Part Schematics Acquired 1 | . 1 . . . Parts Built . | . . . . . Authchips . | . . . . . Time . | . . . . . Total Part Build Rating . | . . . . . Part Studies Acquired . | . . . . . Parts Repaired . | . . . . . Time . | . . . . . Parts Recycled . | . . . . . Recycled Matter . | . . . . . Retrieved Matter . | . . . . . Retrieved Components . | . . . . . Parts Scanalyzed . | . . . . . Part Schematics Acquired . | . . . . . Parts Damaged . | . . . . . Bothacking | -11 -10 -10 -10 -9 ------------ Run | Yrd Mat Min Exi Min Used RIF Installer . | . . . . . Robots Hacked . | . . . . . Non-combat . | . . . . . Combat . | . . . . . Robot Hacks Applied . | . . . . . Relay Couplers Released . | . . . . . Fabnet Peak Effective % . | . . . . . Robots Rewired . | . . . . . Allies Hacked . | . . . . . Hacks Repelled . | . . . . . Allies | -11 -10 -10 -10 -9 -------- Run | Yrd Mat Min Exi Min Total Allies 4 | . 1 3 . . Largest Group 3 | . 1 3 3 3 Highest-Rated Group 75 | . 57 57 40 75 Highest-Rated Ally 57 | . 57 57 16 31 Total Orders . | . . . . . Ally Attacks 9 | . 6 . . 3 Total Damage 351 | . 303 . . 48 Kills 5 | . 4 . . 1 Allies Corrupted . | . . . . . Allies Melted . | . . . . . X0-1V1 Amusement Gains 100 | . 10 . . 90 Average Entertainment 7 | . 9 4 . 12 Good Acts 5 | . 2 1 . 2 Bad Acts 3 | . 2 . . 1 Intel | -11 -10 -10 -10 -9 ------- Run | Yrd Mat Min Exi Min Active Infowar (turns) 501 | 13 488 . . . Seismic 501 | 13 488 . . . Robot Analysis Total . | . . . . . Derelict Logs Recovered . | . . . . . Drone Launches . | . . . . . Drone Recoveries . | . . . . . Exploration | -11 -10 -10 -10 -9 ------------- Run | Yrd Mat Min Exi Min Turns Passed 3228 | 60 1883 612 505 168 Spaces Moved 1581 | 57 994 253 210 67 Core 275 | 57 218 . . . Treads 1306 | . 776 253 210 67 Legs . | . . . . . Wheels . | . . . . . Hover . | . . . . . Flight . | . . . . . Fastest Speed 50 | 50 50 240 240 240 Average Speed 171 | 55 142 240 240 240 Slowest Speed 240 | 100 240 240 240 240 Overloaded Moves . | . . . . . Propulsion Burnouts . | . . . . . Robots Hopped . | . . . . . Potential Cave-ins . | . . . . . Cave-ins Triggered . | . . . . . Exploration Rate (%) 48 | 4 98 53 61 25 Regions Visited 4 Branch Regions 3 Pre-discovered Areas . | . . . . . Known Exits Taken . | . . . . . Unknown Exits Taken 4 | 1 1 1 1 . Scrap Searched . | . . . . . Spaces Dug . | . . . . . Terrain Destroyed 9 | . . . . 9 Melee . | . . . . . Projectile . | . . . . . AOE 9 | . . . . 9 Terrain Rammed . | . . . . . Walls Destroyed . | . . . . . Machines Disabled . | . . . . . Actions | -11 -10 -10 -10 -9 --------- Run | Yrd Mat Min Exi Min Total 1966 | 77 1347 257 213 72 Wait 235 | 1 230 2 . 2 Move 1577 | 56 993 252 209 67 Hop . | . . . . . Pick Up 36 | 9 24 2 1 . Fast Attach 5 | 1 4 . . . Attach 11 | 4 7 . . . Detach 3 | 1 2 . . . Swap 9 | . 7 . . 2 Drop 21 | 1 17 . 3 . Fire 67 | 4 61 1 . 1 Melee . | . . . . . Ram 1 | . 1 . . . Kick . | . . . . . Crush 1 | . 1 . . . Escape Stasis . | . . . . . Rewire . | . . . . . Trap . | . . . . . Miscellaneous . | . . . . . Route ------- -11/Scrapyard -10/Materials (discovered 6 exits: [*Mat x3] / [*Min x2] / [*Sub]) -10/Mines (discovered 2 exits: [*Mat] / *Exi) -10/Exiles -9/Mines History --------- Turn | Location | Event 3 | -11/Scrapyard | Discovered new exit (range 16) 61 | -11/Scrapyard | Entered Materials 73 | -10/Materials | Discovered new exit (range 8) 306 | -10/Materials | Build established: Mutant 405 | -10/Materials | Discovered new exit (range 11) 786 | -10/Materials | Discovered new exit (range 15) 1229 | -10/Materials | Discovered new exit (range 3) 1476 | -10/Materials | Discovered new exit (range 10) 1665 | -10/Materials | Prayed at D.C.S.S. Altar Unit 1667 | -10/Materials | Discovered new exit (range 5) 1720 | -10/Materials | X0-1V1 made a cryptic comment about sterilization and BL-4Z3 1750 | -10/Materials | X0-1V1 sent hostile G-34 Mercenary (x4) 1775 | -10/Materials | X0-1V1 sent allied Chaos Knight (x1) 1776 | -10/Materials | Core integrity fell below 50% 1944 | -10/Materials | Entered Mines 1944 | -10/Mines | Accompanied by 1 ally 2148 | -10/Mines | Found a hidden stash of uninstalled traps 2189 | -10/Mines | Assisted by bots powering up and referring to "LRC-V3" 2331 | -10/Mines | Discovered new exit (range 8) 2391 | -10/Mines | X0-1V1 activates XOMVISION 2545 | -10/Mines | Deemed a non-threat by the Exiles lab entrance 2545 | -10/Mines | Discovered new exit (range 5) 2556 | -10/Mines | Entered Exiles 2556 | -10/Exiles | Accompanied by 3 allies 2616 | -10/Exiles | Met 8R-AWN 2650 | -10/Exiles | Met EX-HEX 2720 | -10/Exiles | Met EX-BIN 2753 | -10/Exiles | Aligned with FarCom system 2756 | -10/Exiles | Given EX-Vault access code 2811 | -10/Exiles | Opened EX-Vault 2827 | -10/Exiles | Found Lightpack 2.0 2873 | -10/Exiles | Warned to stay clear of 0b10 Research branches 2943 | -10/Exiles | Met EX-DEC 3041 | -10/Exiles | Discovered new exit (range 10) 3061 | -10/Exiles | Left Exiles lab with Lightpack 2.0 3061 | -10/Exiles | Entered Mines 3061 | -9/Mines | Accompanied by 3 allies 3186 | -9/Mines | Assembled infested the area 3220 | -9/Mines | Core integrity fell below 20% 3229 | -9/Mines | Destroyed by D-53 Grenadier with Mini Grenade Launcher Last Messages --------------- 03217_ Lgt. Ion Engine destroyed. 03217_ T-07 Excavator destroyed. 03218_ The unstable cave ceiling collapses. 03218_ as-69867 destroyed. 03218_ Lgt. Cannon destroyed. 03218_ as-94072 destroyed. 03219_ A derelict emerges from the shadows: "What are you doing alone down here?" 03219_ The unstable cave ceiling collapses. 03220_ D-53 Grenadier suffers critical hit (Burn). 03221_ EF-GS8(g): "Well, at least you look like you can take care of yourself!" 03221_ as-72840 destroyed. 03221_ as-83605 destroyed. 03223_ EF-GS8(g): "I have the funny feeling that things are about to get a lot worse around here, see you around!" 03223_ EF-GS8(g) slips back into the shadows. 03225_ as-11959 destroyed. 03225_ as-55893 destroyed. 03226_ as-53585 destroyed. 03229_ Lgt. Treads destroyed. 03229_ X0-1V1 chortles! Map ----- +----------------------------------------------------+ | ?# ### ##???????????????????? | | ?# ##### #?## ##??????????????????? | | ?## """ ##??## ##?## " #??????????????????? | | ??# """ #??## ##### ##?????????????????? | | ??# """ #??# ### ##????????????????? | | ??# #??# ## ##???????????????? | | ??## ##??## ## #???????????????? | | ???#####????### ## #???????????????? | | ??????????????## ### #???????????????? | | ??????????????## #?## #???????????????? | | ?????????????## ##### ##??????????????? | | ?????????????# ##?# ##?????????????? | | ?????????????# ##??# = #?????????????? | | ?????????????## ##???# [%* #?????????????? | | ??????????????####???## %=% ##?#??????????? | | ????????????????????## # =#=#??????????? | | ????????????????????# %%=#??????????? | | ????????????????????## =[%#??????????? | | ????????????????????# dd ###??????????? | | ?????????????????????# ###?????????? | | ?????????????????????# #?????????? | | ?????????????????????# #?????????? | | ???????????????????### #?????????? | | ??????????????????## # #?????????? | | ??????????????????# #?????????? | | ???????????????????# @ #??????????? | | ???????????????????# # !%[???????? | | ???????????????????### #?????##????????? | | ??????????????????????##### ##???????????????? | | ???????????????????????????##????????????????? | | ?????????????????????????????????????????????? | | ?????????????????????????????????????????????? | | | | | | | | | | | | | | | | | | | | | | | | | | | | | | | | | | | | | +----------------------------------------------------+ Best States ------------- Heat Dissipation 35 Energy Generation 14 Energy Capacity 160 Matter Stores 500 Matter Capacity 500 Sight Range 16 Terrain Scan Density 10 Evasion (%) 50 Recoil Reduction 2 Item Schematics ----------------- Signal Interpreter | -10/Materials | Hacked Robot Schematics ------------------ None Fabricated ------------ Nothing Repaired ---------- Nothing Studied --------- None Alien Tech Used ----------------- None Achievements -------------- None Challenges ------------ None Game ------ Seed ArmageddonPropulsionDeck Manual? 0 Play Time 01:16:11 Cumulative 329.2 hours Start 2026.08.31 @ 13:13:28 End 2026.09.06 @ 22:17:53 Sessions 1 Manual Loads 0 Difficulty Rogue Special Mode None Game No. 145 Rogue 145 Adventurer 0 Explorer 0 Win Type - Total 5 Types 5/0/0/0/0/0/0/0/0/0 Lore% 55 Gallery% 56 Achievement% 44 Wizard Run 0 Options --------- Layout 0 ASCII 0 Keyboard 0 Movement Numpad Keybinds 0 Fullscreen 2 Font 24/Smallcaps Map View 113x50 Zoom Use 0% Tactical HUD 1 Map Filters NONE Filters NONE Steam 1 RUN: 37c66bb6-cec8-492e-a786-d8ce86aa8e83